bitfinex-derivatives/quotes_SOLF0:USTF0_20250227
["timestamp","ask_amount","ask_price","bid_price","bid_amount"]
[1740656812495,2.0482,140.45,140.41,11.28]
[1740656812984,0.0539371,140.44,140.42,0.04688728]
[1740656813390,7.1809371,140.44,140.42,0.04688728]
[1740656813684,0.0539371,140.44,140.42,0.04688728]
[1740656813883,0.0539371,140.44,140.41,11.28]
[1740656814089,7.1276,140.43,140.41,11.28]
[1740656814275,0.0539371,140.44,140.32,193.94]
[1740656814474,7.1286,140.41,140.35,7.1308]
[1740656814678,7.1286,140.41,140.34,11.28]
[1740656815084,0.04613826,140.39,140.34,11.28]
[1740656816888,0.04613826,140.39,140.37,7.1299]
[1740656818395,0.04613826,140.39,140.38,7.1297]
[1740656818592,2.0482,140.45,140.34,11.28]
[1740656818789,9.1747,140.45,140.34,11.28]
[1740656819386,9.1747,140.45,140.4,7.1284]
[1740656819788,0.05289552,140.44,140.41,0.04682538]
[1740656820285,0.05289552,140.44,140.41,7.17482538]
[1740656820491,0.05289552,140.44,140.41,0.04682538]
[1740656822593,0.05289552,140.44,140.43,7.1272]
[1740656822793,28.83140222,140.48,140.41,11.30682538]
[1740656823392,28.83140222,140.48,140.47,7.1252]
[1740656823601,28.83140222,140.48,140.41,11.26]
[1740656823999,0.0515064,140.46,140.43,0.05152078]
[1740656824191,0.0515064,140.46,140.37,1.8551]
[1740656824396,30.81110222,140.5,140.36,11.28]
[1740656824593,43.79253812,140.5,140.36,11.28]
[1740656824797,43.79253812,140.5,140.36,18.4106]
[1740656825097,15.66255428,140.49,140.36,18.4106]
[1740656825303,7.1279,140.42,140.36,18.4106]
[1740656825496,7.1279,140.42,140.41,0.05435141]
[1740656825695,7.1279,140.42,140.36,18.4106]
[1740656825896,7.1279,140.42,140.4,0.0488383]
[1740656826302,0.05460475,140.43,140.4,0.0488383]
[1740656827396,7.128,140.42,140.4,0.0488383]
[1740656827804,0.05460475,140.43,140.4,0.0488383]
[1740656830297,0.05460475,140.43,140.41,7.1282]
[1740656830704,0.05460475,140.43,140.4,0.0488383]
[1740656831600,0.05460475,140.43,140.36,11.28]
[1740656831802,7.1283,140.41,140.36,11.28]
[1740656832006,7.1283,140.41,140.36,7.1304]
[1740656832408,1.9086,140.45,140.35,11.26]
[1740656832615,1.9086,140.45,140.36,7.1303]
[1740656832797,0.04660719,140.41,140.36,7.1303]
[1740656833108,0.04660719,140.41,140.35,7.1309]
[1740656833314,0.04660719,140.41,140.32,205.2]
[1740656833506,1.9086,140.45,140.32,205.2]
[1740656833703,0.05472735,140.38,140.32,205.2]
[1740656833901,0.05472735,140.38,140.35,7.131]
[1740656834507,7.18452735,140.38,140.35,7.131]
[1740656835112,0.05472735,140.38,140.29,15.0725]
[1740656835305,1.9691,140.37,140.29,15.0725]
[1740656835505,0.05054763,140.35,140.31,7.133]
[1740656835703,0.05054763,140.35,140.29,15.0725]
[1740656836103,7.1329,140.32,140.26,51.04132828]
[1740656836307,7.1329,140.32,140.26,11.28]
[1740656836508,0.0457525,140.3,140.28,7.1345]
[1740656837606,0.0457525,140.3,140.27,7.135]
[1740656837810,0.0457525,140.3,140.25,193.84]
[1740656838112,7.1349,140.28,140.24,7.1367]
[1740656838318,0.0457525,140.3,140.24,7.1367]
[1740656838618,0.0457525,140.3,140.19,112.16350995]
[1740656838811,1.9066,140.35,140.2,11.28]
[1740656839009,0.04722285,140.26,140.2,11.28]
[1740656839212,7.1336,140.31,140.26,7.1355]
[1740656839710,7.18539116,140.3,140.26,7.1355]
[1740656839910,0.05149116,140.3,140.19,108.32440995]
[1740656840105,194.0022,140.29,140.19,108.32440995]
[1740656840299,0.04757495,140.26,140.13,11.28]
[1740656840502,4.0441,140.28,140.16,7.1407]
[1740656840706,0.04803224,140.21,140.16,7.1407]
[1740656841014,0.04803224,140.21,140.14,11.3]
[1740656841812,7.18643224,140.21,140.15,7.1413]
[1740656842113,0.04803224,140.21,140.12,11.3]
[1740656842313,1.9649,140.2,140.12,11.3]
[1740656842513,0.05171524,140.18,140.12,11.3]
[1740656843510,7.1406,140.17,140.12,11.3]
[1740656843806,0.05171524,140.18,140.12,11.3]
[1740656844316,0.05171524,140.18,140.12,18.4425]
[1740656844620,0.05171524,140.18,140.12,11.3]
[1740656844808,0.05171524,140.18,140.09,197.799]
[1740656845007,192.0,140.25,140.11,11.32]
[1740656845208,7.1403,140.18,140.13,7.1424]
[1740656845417,0.04868223,140.15,140.13,7.1424]
[1740656845608,7.1403,140.18,140.13,7.1424]
[1740656845810,0.0536443,140.15,140.14,7.142]
[1740656846811,0.0536443,140.15,140.13,7.1421]
[1740656848112,0.0536443,140.15,140.12,7.1428]
[1740656848616,0.0536443,140.15,140.13,7.1425]
[1740656848815,0.0536443,140.15,140.11,11.32]
[1740656849012,0.0536443,140.15,140.07,11.36]
[1740656849415,2.0246,140.16,140.07,11.36]
[1740656849617,0.05339445,140.12,140.07,11.36]
[1740656850213,0.05339445,140.12,139.97,62.12707543]
[1740656850516,1.9973,140.14,139.98,15.2041]
[1740656850719,0.0457806,140.06,139.98,15.2041]
[1740656851621,0.0457806,140.06,140.0,7.1489]
[1740656852321,0.0457806,140.06,139.98,15.2041]
[1740656852523,0.0457806,140.06,140.0,7.1483]
[1740656853121,0.0457806,140.06,140.01,7.1476]
[1740656853321,0.0457806,140.06,139.98,15.2041]
[1740656853633,0.0457806,140.06,140.02,7.147]
[1740656854326,0.0457806,140.06,139.98,15.2041]
[1740656854915,1.9973,140.14,139.98,15.2041]
[1740656854916,1.9973,140.14,139.99,1.31337308]
[1740656855119,1.9973,140.14,139.99,2.74204655]
[1740656855422,7.1434,140.1,140.03,7.1465]
[1740656856118,0.0517227,140.08,140.05,0.04654638]
[1740656856323,0.0517227,140.08,140.06,11.38]
[1740656860117,0.0517227,140.08,140.06,18.5252]
[1740656861418,0.0517227,140.08,140.07,7.1448]
[1740656862622,7.142,140.13,140.08,7.144]
[1740656863722,0.04530362,140.12,140.09,0.05281932]
[1740656866624,0.04530362,140.12,140.09,7.19621932]
[1740656867928,0.04530362,140.12,140.09,0.05281932]
[1740656868727,0.04530362,140.12,140.09,7.19641932]
[1740656869728,0.04530362,140.12,140.09,0.05281932]
[1740656869929,0.04530362,140.12,140.1,7.1432]
[1740656871024,0.04530362,140.12,140.11,7.1428]
[1740656880033,7.1384,140.2,140.16,7.1399]
[1740656880333,38.49517309,140.21,140.14,11.3]
[1740656880524,45.63307309,140.21,140.14,11.3]
[1740656881028,0.04589652,140.19,140.16,0.04541819]
[1740656883530,7.1393,140.18,140.16,0.04541819]
[1740656884634,7.18479652,140.19,140.16,0.04541819]
[1740656886134,7.1392,140.18,140.16,0.04541819]
[1740656886742,0.04589652,140.19,140.16,0.04541819]
[1740656886938,7.18489652,140.19,140.16,0.04541819]
[1740656887135,0.04589652,140.19,140.16,7.18551819]
[1740656887339,0.04589652,140.19,140.16,0.04541819]
[1740656887632,0.04589652,140.19,140.17,7.1394]
[1740656887940,0.04589652,140.19,140.16,0.04541819]
[1740656888840,0.04589652,140.19,140.16,7.18541819]
[1740656889541,0.04589652,140.19,140.17,7.1397]
[1740656890741,0.04589652,140.19,140.16,7.18541819]
[1740656890936,0.04589652,140.19,140.16,0.04541819]
[1740656891743,7.18479652,140.19,140.16,0.04541819]
[1740656891947,0.04589652,140.19,140.16,0.04541819]
[1740656893440,0.04589652,140.19,140.16,7.18561819]
[1740656893939,0.04589652,140.19,140.16,0.04541819]
[1740656894841,0.04589652,140.19,140.17,7.1392]
[1740656895433,0.04589652,140.19,140.18,7.1392]
[1740656895643,0.04589652,140.19,140.16,0.04541819]
[1740656896842,7.18489652,140.19,140.16,0.04541819]
[1740656897042,0.04589652,140.19,140.16,0.04541819]
[1740656898039,0.04589652,140.19,140.17,7.1392]
[1740656898246,0.04589652,140.19,140.16,0.04541819]
[1740656898538,0.04589652,140.19,140.18,7.1392]
[1740656900833,0.04589652,140.19,140.17,7.1395]
[1740656901040,0.04589652,140.19,140.16,0.04541819]
[1740656901942,0.04589652,140.19,140.16,7.18521819]
[1740656903042,0.04589652,140.19,140.16,0.04541819]
[1740656903746,7.18469652,140.19,140.16,0.04541819]
[1740656904243,0.04589652,140.19,140.16,0.04541819]
[1740656904550,0.04589652,140.19,140.1,11.32]
[1740656904747,1.8948,140.22,140.09,194.18]
[1740656905046,7.1411,140.15,140.1,18.4631]
[1740656905551,0.04567115,140.14,140.11,0.05049395]
[1740656908248,0.04567115,140.14,140.11,7.19299395]
[1740656909449,0.04567115,140.14,140.11,0.05049395]
[1740656910051,0.04567115,140.14,140.11,7.19309395]
[1740656910253,9.23557115,140.14,140.11,7.19309395]
[1740656910750,2.09427115,140.14,140.11,0.05049395]
[1740656911151,2.09427115,140.14,140.07,7.1445]
[1740656911352,3.8484,140.13,140.07,7.1445]
[1740656911649,7.1431,140.11,140.07,7.1445]
[1740656911847,3.8484,140.13,140.05,11.32]
[1740656912156,3.8484,140.13,140.06,7.1452]
[1740656912353,0.04532278,140.1,140.08,0.04856818]
[1740656912760,0.04532278,140.1,140.01,196.0677]
[1740656912962,3.8484,140.13,140.02,11.32]
[1740656913167,195.8484,140.13,140.01,205.5]
[1740656913370,7.1456,140.06,140.01,212.6474]
[1740656913762,15.59928524,140.12,140.01,212.6474]
[1740656913956,0.05436332,140.05,140.01,201.3274]
[1740656914152,7.1458,140.06,140.01,201.3274]
[1740656914456,0.05229828,140.04,140.01,201.3274]
[1740656914664,0.05229828,140.04,140.01,7.1474]
[1740656915464,0.05229828,140.04,140.02,7.1472]
[1740656915657,0.05229828,140.04,139.99,11.32]
[1740656916068,0.05229828,140.04,139.99,7.1487]
[1740656916662,7.19889828,140.04,139.99,7.1487]
[1740656916863,0.05229828,140.04,139.99,7.1487]
[1740656917561,0.05229828,140.04,139.94,1.8788]
[1740656917763,21.46,140.1,139.94,1.8788]
[1740656917963,0.04568417,140.0,139.85,397.82996164]
[1740656918167,21.46,140.07,139.95,7.1506]
[1740656918465,195.9194,140.06,139.95,7.1506]
[1740656918665,0.05411261,140.02,139.88,11.32]
[1740656918864,195.9194,140.06,139.88,11.32]
[1740656919064,5.39e-05,139.96,139.9,14.3067]
[1740656919262,11.61307087,140.13,140.03,7.1464]
[1740656919565,11.61307087,140.13,140.04,11.32]
[1740656919969,7.1428,140.11,140.04,11.32]
[1740656920167,11.61307087,140.13,140.04,11.32]
[1740656920363,11.61307087,140.13,140.06,0.05403906]
[1740656920364,0.04524028,140.09,140.06,0.05403906]
[1740656920771,0.04524028,140.09,140.04,11.32]
[1740656921073,0.04524028,140.09,140.01,7.1475]
[1740656921375,7.1444,140.08,140.01,7.1475]
[1740656921570,3.9238,140.07,140.01,7.1475]
[1740656921968,0.04763449,140.05,139.98,205.6]
[1740656922176,0.04763449,140.05,140.04,7.1463]
[1740656923471,193.8552,140.16,139.99,4.2914]
[1740656923775,1.9745,140.15,140.0,1.31292841]
[1740656923968,1.9745,140.15,140.1,7.1429]
[1740656924166,1.9745,140.15,140.07,11.32]
[1740656924673,0.04963491,140.12,140.1,0.05146189]
[1740656925072,0.04963491,140.12,140.1,7.19446189]
[1740656925374,0.04963491,140.12,140.1,0.05146189]
[1740656929079,0.04963491,140.12,140.03,11.32]
[1740656929375,1.9745,140.15,140.03,11.32]
[1740656929579,7.1428,140.11,140.03,11.32]
[1740656929776,1.9493,140.1,140.03,11.32]
[1740656929975,1.8802,140.09,140.03,11.32]
[1740656930379,0.05397581,140.07,140.03,11.32]
[1740656931181,0.05397581,140.07,140.03,18.4668]
[1740656931378,0.05397581,140.07,140.03,11.32]
[1740656932380,0.05397581,140.07,140.03,18.4667]
[1740656934080,0.05397581,140.07,140.02,7.147]
[1740656934279,0.05397581,140.07,140.01,11.32]
[1740656934481,0.05397581,140.07,139.99,1.42867347]
[1740656934680,0.05397581,140.07,140.0,11.32]
[1740656935279,0.05397581,140.07,140.02,7.1471]
[1740656935479,0.05397581,140.07,140.0,11.32]
[1740656936379,0.05397581,140.07,140.02,7.1473]
[1740656936575,0.05397581,140.07,140.0,11.32]
[1740656936772,0.05397581,140.07,140.06,7.1453]
[1740656936975,0.05397581,140.07,140.01,4.3308]
[1740656937578,0.05397581,140.07,140.01,3.9738]
[1740656937879,0.05397581,140.07,140.01,11.1213]
[1740656938284,0.05397581,140.07,140.01,3.9738]
[1740656938477,0.05397581,140.07,140.03,7.1468]
[1740656939081,0.05397581,140.07,140.01,3.9738]
[1740656939082,7.19887581,140.07,140.01,3.9738]
[1740656939381,0.05397581,140.07,140.01,3.9738]
[1740656939578,0.05397581,140.07,140.02,7.1471]
[1740656940085,0.05397581,140.07,140.01,3.9738]
[1740656940278,7.19907581,140.07,140.01,11.1215]
[1740656941586,7.19907581,140.07,140.01,7.1477]
[1740656942088,7.1459,140.05,140.0,18.468]
[1740656942476,0.05461073,140.04,140.0,18.468]
[1740656942982,0.05461073,140.04,140.0,11.32]
[1740656943785,13.59127087,140.14,140.0,11.32]
[1740656944286,7.1437,140.1,140.04,7.146]
[1740656944483,7.1437,140.1,140.0,11.32]
[1740656944883,7.1437,140.1,140.04,7.146]
[1740656945086,0.05276043,140.06,140.04,7.19926213]
[1740656945382,0.05276043,140.06,140.04,0.05326213]
[1740656945581,38.49517309,140.15,140.04,0.05326213]
[1740656945785,38.49517309,140.15,140.0,32.75]
[1740656945976,38.49517309,140.15,140.01,24.17132597]
[1740656946180,38.49517309,140.15,140.11,7.1424]
[1740656946383,38.49517309,140.15,140.11,11.32]
[1740656946789,0.0521022,140.14,140.12,7.19046691]
[1740656947585,0.0521022,140.14,140.12,0.04856691]
[1740656947785,0.0521022,140.14,140.13,7.1417]
[1740656947986,38.49517309,140.15,140.12,0.04856691]
[1740656948186,38.49517309,140.22,140.12,0.04856691]
[1740656948386,38.49517309,140.22,140.11,11.32]
[1740656948387,45.63257309,140.22,140.15,7.1403]
[1740656948981,45.63257309,140.22,140.16,7.1402]
[1740656949181,0.05319605,140.2,140.17,0.05399633]
[1740656949890,0.05319605,140.2,140.17,7.19319633]
[1740656950591,0.05319605,140.2,140.17,0.05399633]
[1740656950890,0.05319605,140.2,140.18,7.1392]
[1740656951080,0.05319605,140.2,140.17,0.05399633]
[1740656951891,7.1388,140.19,140.17,0.05399633]
[1740656954295,7.1392,140.18,140.17,0.05399633]
[1740656955291,7.1403,140.16,140.1,205.6]
[1740656955598,192.0,140.22,140.1,194.28]
[1740656955793,7.1407,140.16,140.1,201.423]
[1740656956095,15.61386816,140.21,140.1,201.423]
[1740656956291,25.4647,140.23,140.1,201.423]
[1740656956501,0.05337372,140.17,140.14,0.04605539]
[1740656956691,38.40881994,140.23,140.1,201.423]
[1740656956996,0.05263872,140.17,140.14,0.04954522]
[1740656957202,7.1407,140.15,140.1,201.423]
[1740656957393,7.1407,140.15,140.14,0.0481184]
[1740656957592,7.1407,140.15,140.1,201.423]
[1740656957896,7.1407,140.15,140.13,0.04691714]
[1740656958291,0.05369569,140.16,140.13,0.04691714]
[1740656958489,7.1412,140.14,140.13,0.04691714]
[1740656959501,7.141,140.15,140.13,0.04691714]
[1740656961488,7.1412,140.14,140.13,0.04691714]
[1740656961889,0.05369569,140.16,140.13,0.04691714]
[1740656962797,7.1412,140.14,140.13,0.04691714]
[1740656966806,7.1434,140.1,140.08,11.32]
[1740656966997,1.9579,140.15,140.08,11.32]
[1740656967599,7.143,140.11,140.08,11.32]
[1740656967808,1.9579,140.15,140.02,194.22]
[1740656968102,7.1442,140.09,140.08,0.0463368]
[1740656968301,0.05165098,140.11,140.08,0.0463368]
[1740656968607,7.1438,140.09,140.08,0.0463368]
[1740656969203,0.05165098,140.11,140.08,0.0463368]
[1740656969408,7.1435,140.1,140.08,0.0463368]
[1740656970202,7.1438,140.09,140.08,0.0463368]
[1740656971207,7.19465098,140.11,140.08,0.0463368]
[1740656972306,0.05165098,140.11,140.08,0.0463368]
[1740656972507,7.1433,140.1,140.08,0.0463368]
[1740656973007,7.1438,140.09,140.08,0.0463368]
[1740656973807,7.1433,140.1,140.08,0.0463368]
[1740656974306,7.1438,140.09,140.08,0.0463368]
[1740656978806,0.05165098,140.11,140.02,194.22]
[1740656979111,3.9537,140.14,140.02,194.22]
[1740656979503,7.1456,140.06,140.03,7.1464]
[1740656980014,7.19982285,140.06,140.03,7.16923877]
[1740656980311,0.05422285,140.06,140.03,0.02283877]
[1740656980506,0.05422285,140.06,140.04,7.1463]
[1740656980703,0.05422285,140.06,140.03,0.02283877]
[1740656981508,0.05422285,140.06,140.05,7.1458]
[1740656981708,0.05422285,140.06,140.03,0.02283877]
[1740656983808,0.05422285,140.06,140.04,7.1461]
[1740656984613,0.05422285,140.06,140.03,7.16943877]
[1740656984814,7.19992285,140.06,140.03,0.02283877]
[1740656985008,0.05422285,140.06,140.03,0.02283877]
[1740656985410,7.1463,140.05,140.03,0.02283877]
[1740656986716,7.19972285,140.06,140.03,7.16963877]
[1740656987020,0.05422285,140.06,140.03,7.16963877]
[1740656987713,0.05422285,140.06,140.04,7.1461]
[1740656988010,0.05422285,140.06,140.03,0.02283877]
[1740656988216,0.05422285,140.06,140.05,7.1458]
[1740656989015,7.1434,140.1,140.03,0.02283877]
[1740656989217,7.1434,140.1,140.06,7.145]
[1740656989413,38.49517309,140.13,140.02,198.0164]
[1740656989609,7.1441,140.09,140.04,7.1458]
[1740656990313,0.0467845,140.08,140.05,0.04788795]
[1740656990710,0.0467845,140.08,140.05,7.19358795]
[1740656991912,0.0467845,140.08,140.05,0.04788795]
[1740656992818,0.0467845,140.08,140.06,7.1453]
[1740656993215,0.0467845,140.08,140.05,0.04788795]
[1740656993415,7.1453,140.06,140.05,0.04788795]
[1740656993607,2.0386,140.07,139.99,11.4]
[1740656994819,0.04610037,140.04,140.02,0.02917367]
[1740656995418,0.04610037,140.04,140.02,7.17647367]
[1740656995916,0.04610037,140.04,140.03,7.1468]
[1740656996516,2.0054,140.12,140.02,0.02917367]
[1740656996825,38.49517309,140.13,140.0,1.42857142]
[1740656997022,38.49517309,140.13,140.01,0.4953]
[1740656997222,38.49517309,140.13,140.08,7.144]
[1740656997419,38.49517309,140.13,140.08,18.544]
[1740656997721,0.04543363,140.12,140.09,0.04569929]
[1740657000228,7.18803363,140.12,140.09,0.04569929]
[1740657001422,0.04543363,140.12,140.09,0.04569929]
[1740657001922,0.04543363,140.12,140.09,7.18939929]
[1740657003025,0.04543363,140.12,140.09,0.04569929]
[1740657003524,7.1428,140.11,140.09,0.04569929]
[1740657003731,0.04543363,140.12,140.09,0.04569929]
[1740657004128,7.18813363,140.12,140.09,0.04569929]
[1740657004327,0.04543363,140.12,140.09,0.04569929]
[1740657004723,7.18793363,140.12,140.09,0.04569929]
[1740657004919,7.18793363,140.12,140.09,7.18939929]
[1740657005525,0.04543363,140.12,140.09,0.04569929]
[1740657006130,0.04543363,140.12,140.1,7.143]
[1740657006332,0.04543363,140.12,140.09,0.04569929]
[1740657006731,7.18793363,140.12,140.09,0.04569929]
[1740657007425,0.04543363,140.12,140.09,7.18949929]
[1740657007626,0.04543363,140.12,140.09,0.04569929]
[1740657007829,0.04543363,140.12,140.1,7.143]
[1740657008934,0.04543363,140.12,140.09,0.04569929]
[1740657010337,7.18793363,140.12,140.09,0.04569929]
[1740657010932,7.143,140.11,140.09,0.04569929]
[1740657011334,0.04543363,140.12,140.09,0.04569929]
[1740657011538,7.18793363,140.12,140.09,0.04569929]
[1740657011734,0.04543363,140.12,140.09,0.04569929]
[1740657012041,7.1433,140.1,140.09,0.04569929]
[1740657012938,7.1429,140.11,140.09,0.04569929]
[1740657013146,0.04543363,140.12,140.09,0.04569929]
[1740657013440,7.18793363,140.12,140.09,0.04569929]
[1740657014238,7.18793363,140.12,140.09,7.18949929]
[1740657014438,7.18793363,140.12,140.09,0.04569929]
[1740657016333,0.04543363,140.12,140.09,0.04569929]
[1740657016941,0.04543363,140.12,140.11,7.1428]
[1740657018440,0.04543363,140.12,140.09,0.04569929]
[1740657018637,7.18803363,140.12,140.09,0.04569929]
[1740657018836,0.04543363,140.12,140.09,0.04569929]
[1740657019040,0.04543363,140.12,140.1,7.143]
[1740657020247,0.04543363,140.12,140.09,0.04569929]
[1740657021145,0.04543363,140.12,140.04,11.4]
[1740657021343,7.1453,140.06,140.02,212.8271]
[1740657021641,36.29217556,140.16,139.99,11.4]
[1740657021642,21.46,140.14,139.99,11.4]
[1740657021945,2.0151,140.05,139.97,11.4]
[1740657022138,12.97207556,140.12,139.97,11.4]
[1740657022333,0.04911426,140.02,140.0,0.02957475]
[1740657022545,7.1451,140.07,139.97,11.4]
[1740657022844,0.05282841,140.02,140.0,0.02957475]
[1740657023043,7.1451,140.07,139.97,11.4]
[1740657023245,0.04510934,140.02,140.0,0.02957475]
[1740657023446,4.0495,140.11,139.97,11.4]
[1740657023639,0.0454289,140.02,140.01,7.1474]
[1740657023839,7.1449,140.07,139.97,11.4]
[1740657024036,0.05004537,140.03,140.0,0.02957475]
[1740657024339,0.05004537,140.03,140.01,7.1479]
[1740657024543,0.05004537,140.03,140.0,0.02957475]
[1740657024948,0.05004537,140.03,140.01,7.1479]
[1740657025564,0.05004537,140.03,140.02,7.1474]
[1740657026045,17.26482419,140.1,140.02,21.42]
[1740657026352,17.26482419,140.1,140.01,1.9955]
[1740657026847,17.26482419,140.1,140.09,7.1438]
[1740657027051,17.26482419,140.1,140.09,18.5638]
[1740657028245,17.26482419,140.1,140.09,11.42]
[1740657028846,0.04520585,140.11,140.09,11.42]
[1740657032150,0.04520585,140.11,140.1,7.1433]
[1740657033648,1.8609,140.17,140.09,11.42]
[1740657034756,0.04950659,140.14,140.12,0.0474387]
[1740657035152,0.04950659,140.14,140.13,7.1414]
[1740657039360,11.1401,140.2,140.12,0.0474387]
[1740657039555,4.0019,140.2,140.12,0.0474387]
[1740657039753,9.1736,140.21,140.12,0.0474387]
[1740657039754,2.0359,140.21,140.12,0.0474387]
[1740657039960,2.0359,140.21,140.18,7.1392]
[1740657040455,2.0359,140.21,140.19,7.1386]
[1740657040661,0.04708821,140.21,140.18,0.04894655]
[1740657041460,0.04708821,140.21,140.2,7.1382]
[1740657042864,2.0121,140.26,140.24,7.136]
[1740657043169,40.41037309,140.28,140.18,1.9309]
[1740657043369,40.41037309,140.28,140.19,11.4]
[1740657044064,0.04863753,140.25,140.22,0.04504049]
[1740657044263,0.04863753,140.25,140.23,7.1366]
[1740657044564,0.04863753,140.25,140.22,0.04504049]
[1740657044956,0.04863753,140.25,140.22,7.18184049]
[1740657045371,0.04863753,140.25,140.22,0.04504049]
[1740657045567,0.04863753,140.25,140.23,7.1364]
[1740657046270,0.04863753,140.25,140.22,7.18204049]
[1740657047571,0.04863753,140.25,140.22,0.04504049]
[1740657047866,0.04863753,140.25,140.19,11.38]
[1740657048067,1.9152,140.28,140.19,18.5184]
[1740657048271,1.9152,140.28,140.19,11.38]
[1740657048571,1.9152,140.28,140.15,0.5348]
[1740657048764,1.9152,140.28,140.16,11.38]
[1740657049070,0.05009088,140.23,140.2,0.04492596]
[1740657049270,7.1374,140.22,140.2,0.04492596]
[1740657049662,0.05009088,140.23,140.2,0.04492596]
[1740657049867,7.18699088,140.23,140.2,0.04492596]
[1740657051068,0.05009088,140.23,140.2,0.04492596]
[1740657051569,0.05009088,140.23,140.22,7.1372]
[1740657058574,1.9651,140.31,140.2,0.04492596]
[1740657058768,1.9651,140.31,140.17,4.5679]
[1740657058769,4.0018,140.31,140.19,14.2773]
[1740657058969,7.1334,140.3,140.19,14.2773]
[1740657059368,4.0018,140.31,140.19,14.2773]
[1740657059574,7.1337,140.29,140.19,14.2773]
[1740657059773,0.05010288,140.26,140.25,7.1353]
[1740657059974,4.0018,140.31,140.25,7.1353]
[1740657060189,0.05138825,140.27,140.25,7.1353]
[1740657060376,0.05138825,140.27,140.24,18.5494165]
[1740657060777,0.05138825,140.27,140.24,11.4134165]
[1740657060982,0.05138825,140.27,140.25,7.1354]
[1740657061876,0.05138825,140.27,140.26,7.1351]
[1740657062578,0.05138825,140.27,140.25,7.1354]
[1740657063479,0.05138825,140.27,140.26,7.1351]
[1740657069785,3.7917,140.39,140.24,11.4134165]
[1740657069991,1.8675,140.33,140.24,11.36]
[1740657070181,3.8225,140.32,140.24,11.36]
[1740657070380,3.8225,140.32,140.28,7.1339]
[1740657070986,0.05389784,140.31,140.29,0.04939323]
[1740657071780,0.05389784,140.31,140.22,194.0]
[1740657071981,7.1328,140.31,140.23,11.34]
[1740657072185,1.9396,140.32,140.23,11.34]
[1740657072381,1.8675,140.33,140.23,15.2503]
[1740657072589,1.8675,140.33,140.32,7.1321]
[1740657073279,1.8675,140.33,140.31,7.18580628]
[1740657073496,3.7293,140.33,140.31,0.05350628]
[1740657073986,3.7293,140.33,140.31,7.18600628]
[1740657074182,3.7293,140.33,140.31,0.05350628]
[1740657075884,0.05466272,140.34,140.31,0.05350628]
[1740657076086,0.05466272,140.34,140.32,7.132]
[1740657076886,38.49517309,140.41,140.32,22.80531356]
[1740657077079,38.49517309,140.41,140.32,1.42531356]
[1740657077278,38.49517309,140.41,140.35,7.1301]
[1740657078082,0.04958622,140.39,140.37,0.0520722]
[1740657079388,0.04958622,140.39,140.37,7.1811722]
[1740657079590,0.04958622,140.39,140.37,11.3920722]
[1740657080091,0.04958622,140.39,140.38,7.129]
[1740657082994,0.04958622,140.39,140.34,193.92]
[1740657083387,0.04958622,140.39,140.34,201.0508]
[1740657083592,0.04958622,140.39,140.34,193.92]
[1740657084093,0.04958622,140.39,140.35,0.04542273]
[1740657086894,7.17818622,140.39,140.35,0.04542273]
[1740657087299,0.04958622,140.39,140.35,0.04542273]
[1740657089798,7.1292,140.38,140.35,0.04542273]
[1740657089998,9.1141,140.38,140.35,0.04542273]
[1740657090194,12.9148,140.38,140.35,0.04542273]
[1740657090998,7.1296,140.37,140.35,0.04542273]
[1740657093104,5.7856,140.38,140.32,11.34]
[1740657093402,7.1305,140.36,140.32,11.34]
[1740657094305,0.05404236,140.35,140.33,0.05139358]
[1740657095097,7.18484236,140.35,140.33,0.05139358]
[1740657095701,7.1311,140.34,140.33,0.05139358]
[1740657099804,0.05404236,140.35,140.26,240.54594389]
[1740657100024,20.0441,140.38,140.27,11.32]
[1740657100309,5.7856,140.38,140.27,11.32]
[1740657101005,0.04898378,140.34,140.31,0.04835941]
[1740657101204,0.04898378,140.34,140.26,193.9]
[1740657101708,0.04898378,140.34,140.21,13.3715]
[1740657101906,192.0,140.33,140.17,195.929]
[1740657102099,7.1355,140.26,140.18,11.34]
[1740657102307,0.04733671,140.26,140.24,0.04634928]
[1740657102606,0.04733671,140.26,140.22,7.1371]
[1740657102806,7.18283671,140.26,140.24,0.04698825]